Workbook

Sheet Paystub Worksheet
A1: PAYSTUB COMPARISON | D1: Scenarios -> | E1: In the Military | H1: Outside the Military, With Pension | K1: Outside the Military, Without Pension
A2: DIRECTIONS: 1) Enter assumptions, 2) Assess % income differences | E2: Monthly | F2: Yearly | H2: Monthly | I2: Yearly | K2: Monthly | L2: Yearly
D3: Income
A4: Assumptions | D4: Salary | E4: =B5 -> 8333 | F4: =E4*12 -> 99996 | H4: =I4/12 -> 8333.333333 | I4: =B6 -> 100000 | K4: =L4/12 -> 8333.333333 | L4: =B6 -> 100000
A5: Monthly Salary in Military | B5: 8333 | D5: BAS | E5: =B7 -> 250 | F5: =E5*12 -> 3000
A6: Annual Salary outside Military | B6: 100000 | D6: BAH | E6: =B8 -> 1400 | F6: =E6*12 -> 16800
A7: Monthly BAS rate | B7: 250 | D7: Pension | H7: =I7/12 -> 4166.666667 | I7: =B9 -> 50000
A8: Monthly BAH rate | B8: 1400 | D8: Total Income | E8: =SUM(E4:E6) -> 9983 | F8: =SUM(F4:F6) -> 119796 | H8: =SUM(H4:H7) -> 12500 | I8: =SUM(I4:I7) -> 150000 | K8: =SUM(K4:K7) -> 8333.333333 | L8: =SUM(L4:L7) -> 100000
A9: Annual Military Pension | B9: 50000
A10: Federal Tax rate in the Military (%) | B10: 0.25 | D10: Deductions
A11: Federal Tax rate Outside the Military (%) | B11: 0.25 | D11: Federal Taxes | E11: =B10*E4 -> 2083.25 | F11: =E11*12 -> 24999 | H11: =H8*B11 -> 3125 | I11: =H11*12 -> 37500 | K11: =K8*B11 -> 2083.333333 | L11: =K11*12 -> 25000
A12: Social Security tax rate (%) | B12: 0.062 | D12: Social Security | E12: =B12*E4 -> 516.646 | F12: =E12*12 -> 6199.752 | H12: =B12*H8 -> 775 | I12: =H12*12 -> 9300 | K12: =B12*K8 -> 516.6666667 | L12: =K12*12 -> 6200
A13: Medicare Tax rate (%) | B13: 0.0145 | D13: Medicare | E13: =B13*E4 -> 120.8285 | F13: =E13*12 -> 1449.942 | H13: =B13*H8 -> 181.25 | I13: =H13*12 -> 2175 | K13: =B13*K8 -> 120.8333333 | L13: =K13*12 -> 1450
A14: State Tax rate in the Military (%) | B14: 0.06 | D14: State Taxes | E14: =IF(B18="Yes",E4*B14,0) -> 499.98 | F14: =E14*12 -> 5999.76 | H14: =I14/12 -> 750 | I14: =IF(B20="Yes",B15*I8,B15*I4) -> 9000 | K14: =L14/12 -> 500 | L14: =B15*L8 -> 6000
A15: State Tax rate Outside the Military (%) | B15: 0.06 | D15: Local Taxes | E15: =IF(B19="Yes",B16*E4,0) -> 0 | F15: =E15*12 -> 0 | H15: =I15/12 -> 250 | I15: =IF(B21="Yes",B17*I8,B17*I4) -> 3000 | K15: =L15/12 -> 166.6666667 | L15: =B17*L8 -> 2000
A16: Local Tax rate in the Military (%) | B16: 0.02 | D16: Total Deductions | E16: =SUM(E11:E15) -> 3220.7045 | F16: =SUM(F11:F15) -> 38648.454 | H16: =SUM(H11:H15) -> 5081.25 | I16: =SUM(I11:I15) -> 60975 | K16: =SUM(K11:K15) -> 3387.5 | L16: =SUM(L11:L15) -> 40650
A17: Local Tax rate Outside the Military (%) | B17: 0.02
A18: Military Salary Taxed by State? | B18: Yes | D18: After-Tax Income | E18: =E8-E16 -> 6762.2955 | F18: =F8-F16 -> 81147.546 | H18: =H8-H16 -> 7418.75 | I18: =I8-I16 -> 89025 | K18: =K8-K16 -> 4945.833333 | L18: =L8-L16 -> 59350
A19: Military Salary Taxed by Local? | B19: No
A20: Military Pension Taxed by State? | B20: Yes | H20: % decrease in after-tax income from being 'In the Military' | I20: =(F18-I18)/F18 -> -0.09707568976 | L20: =(F18-L18)/F18 -> 0.2686162068
A21: Military Pension Taxed by Local? | B21: Yes | H21: Increase required to sustain 'In the Military' after-tax income | I21: =(F18-I18)/I18 -> -0.08848586352 | L21: =(F18-L18)/L18 -> 0.3672712047
